fUSD/lending_fUSD_20250628
["ID","MTS","AMOUNT","RATE_DAILY","PERIOD"]
[368251719,1751073249608,-510.0,0.00043835,60]
[368251720,1751073249628,-490.0,0.00043835,60]
[368251721,1751073249648,-848.35,0.00043835,60]
[368251722,1751073249669,-490.0,0.00043835,60]
[368251723,1751073249689,-490.0,0.00043835,60]
[368251724,1751073249710,-490.0,0.00043835,60]
[368251725,1751073249730,-490.0,0.00043835,60]
[368251726,1751073249751,-1000.0,0.00043835,120]
[368251727,1751073249774,-490.0,0.00043835,60]
[368251728,1751073249797,-500.0,0.00043835,60]
[368251729,1751073249818,-490.0,0.00043835,60]
[368251730,1751073249839,-490.0,0.00043835,60]
[368251731,1751073249864,-511.92,0.00043835,60]
[368251732,1751073249884,-490.0,0.00043835,60]
[368251733,1751073249905,-490.0,0.00043835,60]
[368251734,1751073249928,-490.0,0.00043835,60]
[368251735,1751073249949,-490.0,0.00043835,60]
[368251736,1751073249970,-514.03484013,0.00043835,60]
[368251737,1751073249991,-510.0,0.00043835,60]
[368251738,1751073250014,-490.0,0.00043835,60]
[368251739,1751073250035,-490.0,0.00043835,60]
[368251740,1751073250056,-490.0,0.00043835,60]
[368251741,1751073250077,-558.45,0.00043835,60]
[368251742,1751073250101,-490.0,0.00043835,60]
[368251743,1751073250121,-490.0,0.00043835,60]
[368251744,1751073250143,-490.0,0.00043835,60]
[368251745,1751073250165,-490.0,0.00043835,60]
[368251746,1751073250186,-490.0,0.00043835,60]
[368251747,1751073250206,-490.0,0.00043835,60]
[368251748,1751073250227,-490.0,0.00043835,60]
[368251749,1751073250248,-490.0,0.00043835,60]
[368251750,1751073250270,-490.0,0.00043835,60]
[368251751,1751073250301,-490.0,0.00043835,60]
[368251752,1751073250322,-490.0,0.00043835,60]
[368251753,1751073250342,-490.0,0.00043835,60]
[368251754,1751073250363,-499.73541662,0.00043835,60]
[368251755,1751073250385,-490.0,0.00043835,60]
[368251756,1751073250407,-490.0,0.00043835,60]
[368251757,1751073250428,-188.26028197,0.00043835,60]
[368251758,1751073250449,-490.0,0.00043835,60]
[368251759,1751073250469,-601.33898325,0.00043835,60]
[368251760,1751073250490,-490.0,0.00043835,60]
[368251761,1751073250512,-490.0,0.00043835,60]
[368251762,1751073250536,-490.0,0.00043835,60]
[368251763,1751073250558,-490.0,0.00043835,60]
[368251764,1751073250578,-490.0,0.00043835,60]
[368251765,1751073250605,-490.0,0.00043835,60]
[368251766,1751073250627,-490.0,0.00043835,60]
[368251767,1751073250649,-490.0,0.00043835,60]
[368251768,1751073250672,-490.0,0.00043835,60]
[368251769,1751073250694,-490.0,0.00043835,60]
[368251770,1751073250716,-521.45,0.00043835,60]
[368251771,1751073250739,-490.0,0.00043835,60]
[368251772,1751073250762,-490.0,0.00043835,60]
[368251773,1751073250784,-490.0,0.00043835,60]
[368251774,1751073250806,-442.064763,0.00043835,60]
[368251775,1751073250828,-490.0,0.00043835,60]
[368251776,1751073250853,-490.0,0.00043835,60]
[368251777,1751073250876,-490.0,0.00043835,60]
[368251778,1751073250898,-165.939895,0.00043835,60]
[368251779,1751073250920,-490.0,0.00043835,60]
[368251780,1751073250942,-490.0,0.00043835,60]
[368251781,1751073250964,-490.0,0.00043835,60]
[368251782,1751073250987,-479.44989991,0.00043835,60]
[368251783,1751073251010,-490.0,0.00043835,60]
[368251784,1751073251032,-490.0,0.00043835,60]
[368251785,1751073251054,-490.0,0.00043835,60]
[368251786,1751073251074,-490.0,0.00043835,60]
[368251787,1751073251095,-490.0,0.00043835,60]
[368251788,1751073251116,-520.0,0.00043835,60]
[368251789,1751073251137,-490.0,0.00043835,60]
[368251790,1751073251159,-293.128175,0.00043835,60]
[368251791,1751073251180,-490.0,0.00043835,60]
[368251792,1751073251205,-490.0,0.00043835,60]
[368251793,1751073251226,-490.0,0.00043835,60]
[368251794,1751073251248,-622.41,0.00043835,60]
[368251795,1751073251269,-490.0,0.00043835,30]
[368251796,1751073251292,-490.0,0.00043835,60]
[368251797,1751073251314,-490.0,0.00043835,60]
[368251798,1751073251335,-490.0,0.00043835,60]
[368251799,1751073251366,-520.0,0.00043835,60]
[368251800,1751073251393,-490.0,0.00043835,60]
[368251801,1751073251420,-490.0,0.00043835,60]
[368251802,1751073251448,-490.0,0.00043835,60]
[368251803,1751073251482,-490.0,0.00043835,60]
[368251804,1751073251506,-520.0,0.00043835,60]
[368251805,1751073251536,-490.0,0.00043835,60]
[368251806,1751073251566,-520.0,0.00043835,60]
[368251807,1751073251595,-1000.0,0.00043835,60]
[368251808,1751073251625,-727.430211,0.00043835,60]
[368251809,1751073251656,-490.0,0.00043835,60]
[368251810,1751073251685,-520.0,0.00043835,60]
[368251811,1751073251711,-490.0,0.00043835,60]
[368251812,1751073251740,-490.0,0.00043835,60]
[368251813,1751073251767,-490.0,0.00043835,60]
[368251814,1751073251800,-490.0,0.00043835,60]
[368251815,1751073251828,-520.0,0.00043835,60]
[368251816,1751073251854,-490.0,0.00043835,60]
[368251817,1751073251879,-490.0,0.00043835,60]
[368251818,1751073251909,-491.39080618,0.00043835,60]
[368251819,1751073251933,-490.0,0.00043835,60]
[368251820,1751073251959,-490.0,0.00043835,60]
[368251821,1751073251989,-490.0,0.00043835,60]
[368251822,1751073252015,-490.0,0.00043835,60]
[368251823,1751073252039,-490.0,0.00043835,60]
[368251824,1751073252066,-490.0,0.00043835,60]
[368251825,1751073252091,-490.0,0.00043835,60]
[368251826,1751073252117,-490.0,0.00043835,60]
[368251827,1751073252146,-500.0,0.00043835,60]
[368251828,1751073252171,-490.0,0.00043835,60]
[368251829,1751073252196,-520.0,0.00043835,60]
[368251830,1751073252222,-490.0,0.00043835,60]
[368251831,1751073252248,-490.0,0.00043835,60]
[368251832,1751073252272,-284.79776595,0.00043835,60]
[368251833,1751073252298,-490.0,0.00043835,60]
[368251834,1751073252322,-490.0,0.00043835,60]
[368251835,1751073252347,-557.40678143,0.00043835,60]
[368251836,1751073252371,-520.0,0.00043835,60]
[368251837,1751073252397,-490.0,0.00043835,60]
[368251838,1751073252423,-490.0,0.00043835,60]
[368251839,1751073252447,-500.0,0.00043835,60]
[368251840,1751073252472,-490.0,0.00043835,60]
[368251841,1751073252497,-490.0,0.00043835,60]
[368251842,1751073252521,-248.9688355,0.00043835,60]
[368251843,1751073252544,-520.0,0.00043835,60]
[368251844,1751073252570,-490.0,0.00043835,60]
[368251845,1751073252594,-490.0,0.00043835,60]
[368251846,1751073252618,-490.0,0.00043835,60]
[368251847,1751073252644,-490.0,0.00043835,60]
[368251848,1751073252673,-490.0,0.00043835,60]
[368251849,1751073252700,-495.61455365,0.00043835,60]
[368251850,1751073252726,-490.0,0.00043835,60]
[368251851,1751073252751,-490.0,0.00043835,60]
[368251852,1751073252776,-490.0,0.00043835,60]
[368251853,1751073252801,-500.0,0.00043835,2]
[368251854,1751073252826,-490.0,0.00043835,60]
[368251855,1751073252857,-490.0,0.00043835,60]
[368251856,1751073252883,-490.0,0.00043835,60]
[368251857,1751073252910,-520.0,0.00043835,60]
[368251858,1751073252941,-490.0,0.00043835,60]
[368251859,1751073252969,-490.0,0.00043835,60]
[368251860,1751073252995,-490.0,0.00043835,60]
[368251861,1751073253020,-490.0,0.00043835,60]
[368251862,1751073253045,-490.0,0.00043835,60]
[368251863,1751073253069,-490.0,0.00043835,60]
[368251864,1751073253093,-520.0,0.00043835,60]
[368251865,1751073253117,-411.40636881,0.00043835,60]
[368251866,1751073253141,-490.0,0.00043835,60]
[368251867,1751073253166,-490.0,0.00043835,60]
[368251868,1751073253197,-490.0,0.00043835,60]
[368251869,1751073253222,-490.0,0.00043835,60]
[368251870,1751073253247,-490.0,0.00043835,60]
[368251871,1751073253270,-520.0,0.00043835,60]
[368251872,1751073253292,-490.0,0.00043835,60]
[368251873,1751073253312,-490.0,0.00043835,60]
[368251874,1751073253332,-490.0,0.00043835,60]
[368251875,1751073253352,-490.0,0.00043835,60]
[368251876,1751073253373,-490.0,0.00043835,60]
[368251877,1751073253395,-490.0,0.00043835,60]
[368251878,1751073253706,-490.0,0.00043835,60]
[368251879,1751073253738,-154.74733266,0.00043835,60]
[368251880,1751073253761,-490.0,0.00043835,60]
[368251881,1751073253784,-490.0,0.00043835,60]
[368251882,1751073253805,-490.0,0.00043835,60]
[368251883,1751073253826,-541.7211753,0.00043835,60]
[368251884,1751073253851,-490.0,0.00043835,60]
[368251885,1751073253873,-520.0,0.00043835,60]
[368251886,1751073253896,-490.0,0.00043835,60]
[368251887,1751073253918,-490.0,0.00043835,60]
[368251888,1751073253941,-520.0,0.00043835,60]
[368251889,1751073253965,-490.0,0.00043835,60]
[368251890,1751073253991,-490.0,0.00043835,60]
[368251891,1751073254014,-490.0,0.00043835,60]
[368251892,1751073254036,-490.0,0.00043835,60]
[368251893,1751073254057,-490.0,0.00043835,60]
[368251894,1751073254080,-490.0,0.00043835,60]
[368251895,1751073254102,-490.0,0.00043835,60]
[368251896,1751073254125,-315.27431113,0.00043835,60]
[368251897,1751073254148,-490.0,0.00043835,60]
[368251898,1751073254172,-490.0,0.00043835,60]
[368251899,1751073254197,-490.0,0.00043835,60]
[368251900,1751073254219,-500.0,0.00043835,60]
[368251901,1751073254242,-490.0,0.00043835,60]
[368251902,1751073254265,-500.0,0.00043835,60]
[368251903,1751073254287,-490.0,0.00043835,60]
[368251904,1751073254309,-490.0,0.00043835,60]
[368251905,1751073254333,-490.0,0.00043835,60]
[368251906,1751073254358,-380.94962113,0.00043835,60]
[368251907,1751073254381,-490.0,0.00043835,60]
[368251908,1751073254404,-490.0,0.00043835,60]
[368251909,1751073254427,-490.0,0.00043835,60]
[368251910,1751073254452,-490.0,0.00043835,60]
[368251911,1751073254475,-490.0,0.00043835,60]
[368251912,1751073254496,-490.0,0.00043835,60]
[368251913,1751073254520,-490.0,0.00043835,60]
[368251914,1751073254545,-490.0,0.00043835,60]
[368251915,1751073254567,-490.0,0.00043835,60]
[368251916,1751073254590,-490.0,0.00043835,60]
[368251917,1751073254614,-490.0,0.00043835,60]
[368251918,1751073254639,-490.0,0.00043835,60]
[368251919,1751073254664,-490.0,0.00043835,60]
[368251920,1751073254686,-490.0,0.00043835,60]
[368251921,1751073254709,-490.0,0.00043835,60]
[368251922,1751073254734,-490.0,0.00043835,60]
[368251923,1751073254756,-490.0,0.00043835,60]
[368251924,1751073254779,-490.0,0.00043835,60]
[368251925,1751073254801,-490.0,0.00043835,60]
[368251926,1751073254823,-490.0,0.00043835,60]
[368251927,1751073254848,-490.0,0.00043835,60]
[368251928,1751073254870,-490.0,0.00043835,60]
[368251929,1751073254893,-490.0,0.00043835,60]
[368251930,1751073254915,-490.0,0.00043835,60]
[368251931,1751073254939,-490.0,0.00043835,60]
[368251932,1751073254961,-490.0,0.00043835,60]
[368251933,1751073254984,-490.0,0.00043835,60]
[368251934,1751073255009,-490.0,0.00043835,60]
[368251935,1751073255032,-490.0,0.00043835,60]
[368251936,1751073255055,-490.0,0.00043835,60]
[368251937,1751073255076,-490.0,0.00043835,60]
[368251938,1751073255100,-512.68,0.00043835,60]
[368251939,1751073255122,-490.0,0.00043835,60]
[368251940,1751073255144,-490.0,0.00043835,60]
[368251941,1751073255166,-490.0,0.00043835,60]
[368251942,1751073255188,-490.0,0.00043835,60]
[368251943,1751073255212,-722.45,0.00043835,60]
[368251944,1751073255234,-490.0,0.00043835,60]
[368251945,1751073255256,-490.0,0.00043835,60]
[368251946,1751073255279,-743.08,0.00043835,60]
[368251947,1751073255301,-535.00003248,0.00043835,60]
[368251948,1751073255326,-490.0,0.00043835,60]
[368251949,1751073255349,-2195.1,0.00043835,60]
[368251950,1751073255371,-490.0,0.00043835,60]
[368251951,1751073255394,-490.0,0.00043835,60]
[368251952,1751073255417,-490.0,0.00043835,60]
[368251953,1751073255441,-490.0,0.00043835,60]
[368251954,1751073255466,-2595.2,0.00043835,60]
[368251955,1751073255489,-756.39,0.00043835,60]
[368251956,1751073255512,-490.0,0.00043835,60]
[368251957,1751073255533,-490.0,0.00043835,60]
[368251958,1751073255557,-490.0,0.00043835,2]
[368251959,1751073255580,-1797.21,0.00043835,60]
[368251960,1751073255602,-490.0,0.00043835,60]
[368251961,1751073255624,-490.0,0.00043835,60]
[368251962,1751073255645,-490.0,0.00043835,60]
[368251963,1751073255667,-490.0,0.00043835,60]
[368251964,1751073255690,-490.0,0.00043835,60]
[368251965,1751073255712,-490.0,0.00043835,60]
[368251966,1751073255735,-490.0,0.00043835,60]
[368251967,1751073255756,-490.0,0.00043835,60]
[368251968,1751073255778,-997.65,0.00043835,60]
[368251969,1751073255801,-490.0,0.00043835,60]
[368251970,1751073255825,-217.4,0.00043835,60]
[368251971,1751073255849,-490.0,0.00043835,60]
[368251972,1751073255876,-597.02,0.00043835,60]
[368251973,1751073255897,-490.0,0.00043835,60]
[368251974,1751073255918,-490.0,0.00043835,60]
[368251975,1751073255944,-1015.68,0.00043835,60]
[368251976,1751073255967,-490.0,0.00043835,60]
[368251977,1751073255990,-490.0,0.00043835,60]
[368251978,1751073256012,-490.0,0.00043835,60]
[368251979,1751073256033,-490.0,0.00043835,60]
[368251980,1751073256055,-490.0,0.00043835,60]
[368251981,1751073256078,-490.0,0.00043835,60]
[368251982,1751073256101,-490.0,0.00043835,60]
[368251983,1751073256123,-490.0,0.00043835,60]
[368251984,1751073256146,-1808.32,0.00043835,60]
[368251985,1751073256167,-490.0,0.00043835,60]
[368251986,1751073256189,-490.0,0.00043835,60]
[368251987,1751073256211,-490.0,0.00043835,60]
[368251988,1751073256232,-490.0,0.00043835,60]
[368251989,1751073256254,-490.0,0.00043835,60]
[368251990,1751073256276,-573.47,0.00043835,60]
[368251991,1751073256297,-490.0,0.00043835,60]
[368251992,1751073256319,-490.0,0.00043835,60]
[368251993,1751073256343,-500.0,0.00043835,60]
[368251994,1751073256366,-490.0,0.00043835,60]
[368251995,1751073256389,-490.0,0.00043835,60]
[368251996,1751073256412,-490.0,0.00043835,60]
[368251997,1751073256433,-490.0,0.00043835,60]
[368251998,1751073256454,-490.0,0.00043835,60]
[368251999,1751073256477,-731.32,0.00043835,60]
[368252000,1751073256498,-490.0,0.00043835,60]
[368252001,1751073256520,-490.0,0.00043835,60]
[368252002,1751073256542,-490.0,0.00043835,60]
[368252003,1751073256563,-998.69,0.00043835,60]
[368252004,1751073256585,-542.0,0.00043835,60]
[368252005,1751073256607,-490.0,0.00043835,60]
[368252006,1751073256628,-490.0,0.00043835,60]
[368252007,1751073256651,-595.41,0.00043835,60]
[368252008,1751073256674,-490.0,0.00043835,60]
[368252009,1751073256696,-490.0,0.00043835,60]
[368252010,1751073256718,-490.0,0.00043835,60]
[368252011,1751073256740,-490.0,0.00043835,60]
[368252012,1751073256762,-709.9,0.00043835,60]
[368252013,1751073256785,-650.36,0.00043835,60]
[368252014,1751073256805,-490.0,0.00043835,60]
[368252015,1751073256829,-710.65,0.00043835,60]
[368252016,1751073256852,-490.0,0.00043835,60]
[368252017,1751073256874,-490.0,0.00043835,60]
[368252018,1751073256897,-503.54,0.00043835,60]
[368252019,1751073256920,-490.0,0.00043835,60]
[368252020,1751073256943,-490.0,0.00043835,60]
[368252021,1751073256966,-490.0,0.00043835,60]
[368252022,1751073256988,-490.0,0.00043835,60]
[368252023,1751073257011,-490.0,0.00043835,60]
[368252024,1751073257032,-490.0,0.00043835,60]
[368252025,1751073257054,-622.32,0.00043835,60]
[368252026,1751073257075,-490.0,0.00043835,60]
[368252027,1751073257097,-490.0,0.00043835,60]
[368252028,1751073257118,-490.0,0.00043835,60]
[368252029,1751073257140,-490.0,0.00043835,60]
[368252030,1751073257322,-490.0,0.00043835,60]
[368252031,1751073257344,-490.0,0.00043835,60]
[368252032,1751073257366,-490.0,0.00043835,60]
[368252033,1751073257389,-2477.53,0.00043835,60]
[368252034,1751073257411,-490.0,0.00043835,60]
[368252035,1751073257432,-490.0,0.00043835,60]
[368252036,1751073257456,-864.71,0.00043835,60]
[368252037,1751073257478,-490.0,0.00043835,60]
[368252038,1751073257500,-490.0,0.00043835,60]
[368252039,1751073257522,-490.0,0.00043835,60]
[368252040,1751073257544,-713.99,0.00043835,60]
[368252041,1751073257567,-672.51,0.00043835,60]
[368252042,1751073257588,-597.62,0.00043835,60]
[368252043,1751073257610,-490.0,0.00043835,60]
[368252044,1751073257632,-490.0,0.00043835,60]
[368252045,1751073257653,-490.0,0.00043835,60]
[368252046,1751073257674,-490.0,0.00043835,60]
[368252047,1751073257696,-634.25,0.00043835,60]
[368252048,1751073257718,-490.0,0.00043835,60]
[368252049,1751073257741,-490.0,0.00043835,60]
[368252050,1751073257763,-490.0,0.00043835,60]
[368252051,1751073257786,-490.0,0.00043835,60]
[368252052,1751073257808,-1142.61,0.00043835,60]
[368252053,1751073257829,-490.0,0.00043835,60]
[368252054,1751073257855,-490.0,0.00043835,60]
[368252055,1751073257877,-661.88,0.00043835,60]
[368252056,1751073257900,-816.78,0.00043835,60]
[368252057,1751073257921,-490.0,0.00043835,60]
[368252058,1751073257944,-933.15,0.00043835,60]
[368252059,1751073257966,-490.0,0.00043835,60]
[368252060,1751073257988,-490.0,0.00043835,60]
[368252061,1751073258011,-490.0,0.00043835,60]
[368252062,1751073258034,-490.0,0.00043835,60]
[368252063,1751073258056,-490.0,0.00043835,60]
[368252064,1751073258079,-490.0,0.00043835,60]
[368252065,1751073258101,-490.0,0.00043835,60]
[368252066,1751073258122,-490.0,0.00043835,60]
[368252067,1751073258144,-623.22,0.00043835,60]
[368252068,1751073258165,-490.0,0.00043835,60]
[368252069,1751073258186,-490.0,0.00043835,60]
[368252070,1751073258210,-490.0,0.00043835,60]
[368252071,1751073258232,-512.36,0.00043835,60]
[368252072,1751073258254,-582.5,0.00043835,60]
[368252073,1751073258276,-1105.01,0.00043835,60]
[368252074,1751073258298,-490.0,0.00043835,60]
[368252075,1751073258321,-490.0,0.00043835,60]
[368252076,1751073258342,-2098.71,0.00043835,60]
[368252077,1751073258364,-490.0,0.00043835,60]
[368252078,1751073258386,-490.0,0.00043835,60]
[368252079,1751073258407,-490.0,0.00043835,60]
[368252080,1751073258430,-490.0,0.00043835,60]
[368252081,1751073258453,-490.0,0.00043835,60]
[368252082,1751073258476,-490.0,0.00043835,60]
[368252083,1751073258497,-490.0,0.00043835,60]
[368252084,1751073258519,-65927.83,0.00043835,60]
[368252085,1751073258541,-490.0,0.00043835,60]
[368252086,1751073258563,-490.0,0.00043835,60]
[368252087,1751073258584,-3026.64,0.00043835,60]
[368252088,1751073258606,-490.0,0.00043835,60]
[368252089,1751073258628,-490.0,0.00043835,60]
[368252090,1751073258649,-566.7,0.00043835,60]
[368252091,1751073258673,-4250.37015425,0.00043835,60]
[368252092,1751073279930,133333.0,0.00027397,120]
[368252093,1751073297566,2922.6,0.00027397,120]
[368252419,1751073885864,154.93,0.00013699,2]
[368252562,1751074232321,-489.999999,0.00038488,2]
[368252563,1751074232331,-158.0,0.00038488,120]
[368252564,1751074232341,-211.0,0.00039139,2]
[368252565,1751074232350,-587.04,0.0004,120]
[368252566,1751074232359,-221.28,0.0004,120]
[368252567,1751074232368,-168.08,0.0004,120]
[368252568,1751074232377,-151.0,0.00041919,5]
[368252569,1751074232386,-151.0,0.0004193,5]
[368252570,1751074232395,-151.0,0.00041937,5]
[368252571,1751074232404,-151.0,0.00041945,5]
[368252572,1751074232414,-157.39,0.00042863,2]
[368252573,1751074232424,-1000.0,0.0004298,2]
[368252574,1751074232434,-835.23345362,0.0004298,2]
[368252575,1751074232443,-7048.20654738,0.000434,2]
[368252576,1751074232456,-16692.29724948,0.000434,2]
[368252577,1751074232465,-2000.0,0.000435,90]
[368252578,1751074232475,-1597.0,0.000435,120]
[368252579,1751074232484,-200.0,0.00043582,10]
[368252580,1751074232493,-200.0,0.00043585,10]
[368252581,1751074232502,-200.0,0.00043612,10]
[368252582,1751074232511,-200.0,0.00043672,10]
[368252583,1751074232521,-1784.93129374,0.00043725,15]
[368252584,1751074232530,-6691.7516441,0.00043725,15]
[368252585,1751074232543,-157.59229648,0.00043725,28]
[368252586,1751074232552,-200.0,0.00043746,10]
[368252587,1751074232561,-200.0,0.00043747,10]
[368252588,1751074232571,-500.0,0.00043799,31]
[368252589,1751074232581,-500.0,0.00043799,31]
[368252590,1751074232591,-535.24136873,0.00043799,31]
[368252591,1751074232600,-500.0,0.00043799,31]
[368252592,1751074232609,-202.47226212,0.00043799,31]
[368252593,1751074232619,-500.0,0.00043799,31]
[368252594,1751074232628,-202.31622406,0.00043799,31]
[368252595,1751074232637,-3999.99999901,0.000438,60]
[368252596,1751074232646,-222582.84420349,0.000438,120]
[368252608,1751074238354,-151.0,0.00041929,5]
[368252609,1751074238364,-100.4662626,0.00042845,2]
[368253757,1751074250392,-49.6137374,0.00042845,2]
[368253759,1751074250401,-500.0,0.00043799,31]
[368253761,1751074250410,-565.34571314,0.00043799,31]
[368253914,1751074932726,155.78,0.00013699,2]
[368253915,1751075164591,627.05186957,0.000267,10]
[368253935,1751075431451,-900.0,0.00036,37]
[368253936,1751075431461,-296.0765777,0.00037,38]
[368253937,1751075431470,-203.38906506,0.000378,2]
[368253938,1751075431479,-1696.68835724,0.00037819,2]
[368253939,1751075431606,-570.94911927,0.00037819,2]
[368253940,1751075431617,-204.73288511,0.00037862,120]
[368253941,1751075431626,-70.37299562,0.00038,2]
[368253942,1751075431711,-287.62700438,0.00038,2]
[368253943,1751075431720,-366.31799562,0.00038,120]
[368253944,1751075431816,-64.96769306,0.00038,120]
[368253945,1751075431826,-155.78,0.00038356,2]
[368253946,1751075431835,-1600.0,0.00038497,5]
[368253947,1751075431845,-605.0,0.00038498,5]
[368253948,1751075431854,-201.02,0.00038499,2]
[368253949,1751075431864,-156.81,0.00038499,2]
[368253950,1751075431874,-300.0,0.00038499,120]
[368253951,1751075431883,-250.0,0.00038499,120]
[368253952,1751075431892,-2500.0,0.00038499,2]
[368253953,1751075431901,-10077.15678215,0.000385,120]
[368253954,1751075431910,-158.68675055,0.00038506,60]
[368253955,1751075431920,-3762.0,0.00038506,120]
[368253957,1751075431931,-221.9606,0.00038888,30]
[368253958,1751075431940,-156.28687835,0.00038893,7]
[368253959,1751075431950,-174.57,0.00039035,2]
[368253960,1751075431959,-747.10029179,0.00039221,2]
[368253961,1751075431968,-787.49494476,0.00039221,2]
[368253962,1751075431977,-270.0,0.00039485,2]
[368253963,1751075431988,-270.0,0.00039534,7]
[368253964,1751075431997,-270.0,0.00040092,120]
[368253965,1751075432008,-151.05,0.00040596,2]
[368253966,1751075432017,-456.6,0.000408,2]
[368253968,1751075432028,-203.38,0.00040859,120]
[368253969,1751075432037,-666.0,0.0004098,2]
[368253970,1751075432046,-5576.79,0.0004098,2]
[368253971,1751075432055,-300.0,0.00040998,120]
[368253972,1751075432064,-250.0,0.00040998,120]
[368253973,1751075432073,-1300.0,0.00041032,4]
[368253974,1751075432084,-703.0,0.00041032,4]
[368253975,1751075432093,-327.49975047,0.00041032,2]
[368253976,1751075432102,-2751.0,0.00041033,120]
[368253977,1751075432111,-1000.0,0.00041038,2]
[368253979,1751075432120,-165.93,0.00041102,2]
[368253980,1751075432130,-692.0,0.00041104,7]
[368253981,1751075432139,-250.0,0.00041129,2]
[368253982,1751075432148,-1801.84,0.00041178,2]
[368253983,1751075432157,-2240.0,0.00041283,5]
[368253984,1751075432168,-209.0,0.00041352,10]
[368253985,1751075432177,-355.0,0.00041826,7]
[368253986,1751075432187,-674.54784041,0.0004184,2]
[368253987,1751075432196,-2747.64,0.00041902,2]
[368253988,1751075432205,-297.34,0.00041902,2]
[368253989,1751075432215,-166.43,0.00041978,2]
[368253990,1751075432224,-566.94,0.00041978,2]
[368253991,1751075432233,-200.0,0.00041985,2]
[368253992,1751075432243,-270.0,0.00042317,2]
[368253993,1751075432252,-300.0,0.00042349,120]
[368253994,1751075432261,-250.0,0.00042349,120]
[368253995,1751075432270,-2500.0,0.00042349,2]
[368253996,1751075432279,-168.728,0.00042638,65]
[368253997,1751075432288,-835.23345362,0.00042638,2]
[368253998,1751075432298,-605.50231899,0.00043,30]
[368253999,1751075432307,-172.70195,0.00043,120]
[368254000,1751075432316,-10846.64,0.00043,2]
[368254001,1751075432326,-203.38906506,0.00043123,2]
[368254002,1751075432336,-782.71592853,0.00043222,2]
[368254003,1751075432345,-924.62,0.00043288,30]
[368254004,1751075432355,-798.72,0.00043288,30]
[368254005,1751075432364,-1009.0,0.000433,2]
[368254006,1751075432374,-1132.32818,0.0004336,18]
[368254007,1751075432384,-257.062811,0.00043498,120]
[368254008,1751075432393,-554.48915076,0.00043499,15]
[368254009,1751075432403,-500.0,0.00043499,31]
[368254010,1751075432413,-239.04902962,0.00043499,31]
[368254011,1751075432619,-500.0,0.00043499,31]
[368254012,1751075432629,-500.0,0.00043499,31]
[368254013,1751075432638,-500.0,0.00043499,31]
[368254014,1751075432647,-500.0,0.00043499,31]
[368254015,1751075432657,-489.85582536,0.00043499,31]
[368254016,1751075432666,-500.0,0.00043499,31]
[368254017,1751075432675,-500.0,0.00043499,31]
[368254018,1751075432684,-10003.99,0.000435,120]
[368254019,1751075432693,-4000.0,0.000436,120]